bitfinex-derivatives/quotes_SOLF0:USTF0_20240820
["timestamp","ask_amount","ask_price","bid_price","bid_amount"]
[1724158871632,26.44231289,145.5,145.47,0.04614397]
[1724158871829,26.39,145.49,145.47,0.04614397]
[1724158872135,3.4353,145.48,145.47,0.04614397]
[1724158873437,29.8253,145.49,145.47,0.04614397]
[1724158873637,26.39,145.49,145.47,0.04614397]
[1724158874236,3.4353,145.48,145.47,0.04614397]
[1724158875441,27.6892,145.49,145.41,3.4368]
[1724158875635,26.39,145.45,145.41,3.4368]
[1724158876138,3.4364,145.44,145.41,3.4368]
[1724158876335,3.48621151,145.44,145.41,3.48316764]
[1724158877038,3.4367,145.43,145.41,0.04636764]
[1724158879542,26.39,145.42,145.31,26.39]
[1724158879833,26.39,145.42,145.32,27.6596]
[1724158880039,26.39,145.42,145.34,4.83085841]
[1724158880644,0.04889263,145.39,145.37,0.05224077]
[1724158880936,0.04889263,145.39,145.37,3.48994077]
[1724158882131,0.04889263,145.39,145.38,3.4377]
[1724158882327,0.04889263,145.39,145.37,0.05224077]
[1724158882743,0.04889263,145.39,145.37,3.49004077]
[1724158883642,0.04889263,145.39,145.37,0.05224077]
[1724158884144,3.48639263,145.39,145.37,0.05224077]
[1724158884345,0.04889263,145.39,145.37,0.05224077]
[1724158884845,3.48639263,145.39,145.37,0.05224077]
[1724158885038,26.39,145.4,145.37,0.05224077]
[1724158885039,24.97872659,145.4,145.37,0.05224077]
[1724158885546,28.41612659,145.4,145.37,0.05224077]
[1724158886240,0.0490512,145.4,145.37,0.05224077]
[1724158887051,26.4390512,145.4,145.37,0.05224077]
[1724158888047,0.0490512,145.4,145.37,3.49014077]
[1724158888348,0.0490512,145.4,145.37,0.05224077]
[1724158889249,0.0490512,145.4,145.38,3.4376]
[1724158889752,0.0490512,145.4,145.37,0.05224077]
[1724158890350,0.0490512,145.4,145.38,3.4375]
[1724158891056,0.0490512,145.4,145.37,3.49004077]
[1724158891253,0.0490512,145.4,145.37,0.05224077]
[1724158891254,26.4390512,145.4,145.37,0.05224077]
[1724158892146,0.0490512,145.4,145.37,0.05224077]
[1724158893048,0.0490512,145.4,145.38,3.4376]
[1724158893451,0.0490512,145.4,145.37,0.05224077]
[1724158893950,0.0490512,145.4,145.39,3.4375]
[1724158894655,1.3051,145.45,145.36,26.39]
[1724158894855,1.3051,145.45,145.37,1.2901]
[1724158895155,4.7412,145.45,145.41,3.4368]
[1724158895453,1.3051,145.45,145.41,3.4368]
[1724158895752,26.4402338,145.44,145.42,0.05246747]
[1724158897050,26.4402338,145.44,145.34,26.39]
[1724158897357,26.39,145.43,145.35,2.41783413]
[1724158897657,26.39,145.43,145.35,1.3408]
[1724158898045,3.4374,145.4,145.35,1.3408]
[1724158898247,26.39,145.41,145.35,1.3408]
[1724158898460,0.05288464,145.4,145.38,0.04655197]
[1724158898649,0.05288464,145.4,145.38,3.48415197]
[1724158900254,0.05288464,145.4,145.38,0.04655197]
[1724158900750,0.05288464,145.4,145.38,3.48415197]
[1724158901265,0.05288464,145.4,145.39,3.4375]
[1724158905562,26.39,145.47,145.4,3.48145081]
[1724158905862,26.39,145.47,145.38,26.43655197]
[1724158905863,3.4359,145.46,145.38,26.43655197]
[1724158906049,3.4359,145.46,145.42,3.4366]
[1724158906359,0.05099544,145.45,145.43,0.04390711]
[1724158907455,0.05099544,145.45,145.43,3.48030711]
[1724158908056,0.05099544,145.45,145.44,3.4363]
[1724158908253,0.05099544,145.45,145.43,0.04390711]
[1724158908967,0.05099544,145.45,145.43,3.48030711]
[1724158911965,3.48709544,145.45,145.43,0.04390711]
[1724158912363,0.05099544,145.45,145.43,0.04390711]
[1724158912667,0.05099544,145.45,145.43,3.48030711]
[1724158916568,0.05099544,145.45,145.44,3.4363]
[1724158917168,0.05099544,145.45,145.43,3.48030711]
[1724158917760,0.05099544,145.45,145.44,3.4363]
[1724158917964,1.3735,145.5,145.43,0.04390711]
[1724158918468,1.3735,145.5,145.43,26.43390711]
[1724158918975,1.3735,145.5,145.47,3.4355]
[1724158919160,0.05053319,145.48,145.47,3.4355]
[1724158925572,1.3324,145.54,145.5,3.4348]
[1724158925884,1.3324,145.54,145.46,26.43763717]
[1724158926075,1.3324,145.54,145.46,26.39]
[1724158926269,1.3324,145.54,145.49,3.435]
[1724158926471,3.4345,145.52,145.49,3.435]
[1724158926879,1.3324,145.54,145.51,3.4344]
[1724158927383,1.3751,145.57,145.5,10.54]
[1724158927384,0.05193239,145.52,145.5,10.54]
[1724158927579,11.9151,145.57,145.5,10.54]
[1724158927776,3.4336,145.56,145.5,10.54]
[1724158927979,3.4336,145.56,145.52,3.4342]
[1724158928277,3.4336,145.56,145.5,10.54]
[1724158928777,10.54,145.58,145.53,3.4339]
[1724158928983,10.54,145.58,145.52,0.05078385]
[1724158929185,13.9731,145.58,145.54,3.4339]
[1724158929375,3.4331,145.58,145.54,3.4339]
[1724158929777,0.04770196,145.57,145.55,3.4336]
[1724158929978,0.04770196,145.57,145.55,3.48588079]
[1724158930675,0.04770196,145.57,145.55,0.05228079]
[1724158931288,0.04770196,145.57,145.56,6.90120715]
[1724158932189,476.90804,145.61,145.55,0.05228079]
[1724158932889,480.34034,145.61,145.57,3.4331]
[1724158933086,0.04871174,145.6,145.57,3.4331]
[1724158933491,0.04871174,145.6,145.55,0.05228079]
[1724158933783,26.37,145.59,145.55,0.05228079]
[1724158933989,3.4332,145.57,145.55,0.05228079]
[1724158934789,4.7371,145.58,145.55,0.05228079]
[1724158935181,4.7371,145.58,145.55,3.48598079]
[1724158935389,4.7371,145.58,145.55,0.05228079]
[1724158936389,1.304,145.58,145.55,0.05228079]
[1724158936590,3.4332,145.57,145.55,0.05228079]
[1724158936884,1.304,145.58,145.55,0.05228079]
[1724158937087,4.737,145.58,145.55,0.05228079]
[1724158937992,3.4333,145.57,145.55,0.05228079]
[1724158938992,4.7371,145.58,145.55,0.05228079]
[1724158940193,3.4332,145.57,145.55,0.05228079]
[1724158940590,1.304,145.58,145.55,0.05228079]
[1724158940991,3.4332,145.57,145.55,0.05228079]
[1724158941190,1.304,145.58,145.55,0.05228079]
[1724158941393,26.37,145.57,145.48,3.37756149]
[1724158941694,3.434,145.54,145.46,26.37]
[1724158942195,3.434,145.54,145.5,3.4347]
[1724158942492,0.05206578,145.51,145.5,3.4347]
[1724158943287,0.05206578,145.51,145.49,6.88159259]
[1724158943993,0.05206578,145.51,145.5,3.4349]
[1724158950197,26.37,145.57,145.52,3.4343]
[1724158950391,3.4336,145.56,145.52,3.4343]
[1724158951298,26.41515995,145.55,145.49,3.39847846]
[1724158951499,26.41515995,145.55,145.46,26.37]
[1724158951691,26.37,145.55,145.51,0.04669201]
[1724158951892,3.48545009,145.54,145.51,3.41566199]
[1724158952601,3.48545009,145.54,145.51,6.85016199]
[1724158952902,0.05145009,145.54,145.51,3.41566199]
[1724158953897,0.05145009,145.54,145.52,3.4343]
[1724158956300,10.60145009,145.54,145.51,3.41566199]
[1724158957805,3.4343,145.53,145.51,3.41566199]
[1724158958101,10.60145009,145.54,145.51,0.04669201]
[1724158958301,10.55,145.53,145.51,0.04669201]
[1724158958698,3.4344,145.52,145.51,0.04669201]
[1724158959293,3.4342,145.53,145.51,0.04669201]
[1724158963507,3.4344,145.52,145.51,0.04669201]
[1724158967010,1.2712,145.53,145.51,0.04669201]
[1724158967206,0.05145009,145.54,145.51,0.04669201]
[1724158968304,0.05145009,145.54,145.52,3.4343]
[1724158969302,0.05145009,145.54,145.53,3.4341]
[1724158976728,10.60145009,145.54,145.45,10.55]
[1724158976924,10.55,145.52,145.46,3.3677088]
[1724158977226,13.9845,145.52,145.47,3.4355]
[1724158977427,10.55,145.52,145.47,3.4355]
[1724158977622,0.05246927,145.51,145.47,3.4355]
[1724158977818,0.05246927,145.51,145.48,0.04821113]
[1724158978018,3.4349,145.5,145.48,0.04821113]
[1724158980128,3.4351,145.49,145.48,0.04821113]
[1724158980326,0.05246927,145.51,145.48,0.04821113]
[1724158980827,0.05246927,145.51,145.49,10.55]
[1724158981027,0.01850658,145.51,145.5,10.55]
[1724158981826,0.01850658,145.51,145.5,13.9849]
[1724158989937,0.01850658,145.51,145.5,10.55]
[1724158990127,0.01850658,145.51,145.49,13.985]
[1724158991428,0.01850658,145.51,145.5,13.9849]
[1724158992333,1.3814,145.58,145.5,10.55]
[1724158992527,3.4336,145.56,145.53,10.55]
[1724158992737,1.3814,145.58,145.53,10.55]
[1724158993239,0.04462049,145.57,145.54,10.60187142]
[1724158993541,0.04462049,145.57,145.54,14.03567142]
[1724158994233,3.47792049,145.57,145.54,0.05187142]
[1724158994442,0.04462049,145.57,145.54,0.05187142]
[1724158995737,3.4335,145.56,145.54,0.05187142]
[1724158995937,0.04462049,145.57,145.54,3.48577142]
[1724158996846,3.47792049,145.57,145.54,3.48577142]
[1724158997347,3.4335,145.56,145.54,0.05187142]
[1724158998446,3.4337,145.55,145.54,0.05187142]
[1724159000345,0.04462049,145.57,145.54,0.05187142]
[1724159000545,3.4335,145.56,145.54,0.05187142]
[1724159003048,0.04462049,145.57,145.54,0.05187142]
[1724159003049,3.47792049,145.57,145.54,0.05187142]
[1724159003738,3.4335,145.56,145.54,0.05187142]
[1724159003939,0.04462049,145.57,145.54,0.05187142]
[1724159004732,3.4336,145.56,145.54,0.05187142]
[1724159005137,0.04462049,145.57,145.54,3.48567142]
[1724159005138,3.47802049,145.57,145.54,3.48567142]
[1724159005336,3.47802049,145.57,145.54,0.05187142]
[1724159005547,0.04462049,145.57,145.54,0.05187142]
[1724159005943,3.47792049,145.57,145.54,0.05187142]
[1724159007144,3.4335,145.56,145.54,0.05187142]
[1724159008249,3.47792049,145.57,145.54,0.05187142]
[1724159009550,3.47792049,145.57,145.54,3.48577142]
[1724159009748,0.04462049,145.57,145.55,10.55]
[1724159010048,0.04462049,145.57,145.56,10.55]
[1724159010355,0.04462049,145.57,145.55,13.9835]
[1724159010943,0.04462049,145.57,145.55,13.9889774]
[1724159011149,0.04462049,145.57,145.54,0.05187142]
[1724159011956,3.4336,145.56,145.54,0.05187142]
[1724159013351,3.4337,145.55,145.54,0.05187142]
[1724159016358,3.4335,145.56,145.54,0.05187142]
[1724159017247,3.4337,145.55,145.54,0.05187142]
[1724159017647,10.55,145.55,145.49,10.55]
[1724159018060,3.4341,145.54,145.49,10.55]
[1724159018661,3.4341,145.54,145.51,3.4345]
[1724159018855,0.04806691,145.53,145.51,13.9845]
[1724159019060,0.04806691,145.53,145.51,10.55]
[1724159019751,0.04806691,145.53,145.52,3.4344]
[1724159020259,0.04806691,145.53,145.52,13.9844]
[1724159021060,0.04806691,145.53,145.51,10.55]
[1724159021757,0.04806691,145.53,145.52,13.9844]
[1724159024563,0.04806691,145.53,145.52,3.4344]
[1724159026068,0.04806691,145.53,145.52,13.9844]
[1724159027365,3.433,145.58,145.55,3.4336]
[1724159028264,3.4806467,145.58,145.55,3.47966905]
[1724159028464,3.4806467,145.58,145.55,6.85114772]
[1724159029465,3.4806467,145.58,145.55,3.47966905]
[1724159030963,0.0476467,145.58,145.55,3.47966905]
[1724159032363,0.0476467,145.58,145.55,6.97665579]
[1724159034458,0.0476467,145.58,145.57,3.4332]
[1724159034764,0.0476467,145.58,145.55,3.54305579]
[1724159034765,0.0476467,145.58,145.56,10.55]
[1724159035856,0.0476467,145.58,145.57,13.9832]
[1724159038370,74.47763614,145.64,145.6,3.4325]
[1724159039460,2.6072,145.66,145.6,3.4325]
[1724159039672,3.4309,145.67,145.6,3.4325]
[1724159039967,154.55499866,145.75,145.6,3.4325]
[1724159039968,360.08226581,145.61,145.6,45.6325]
[1724159040471,360.08226581,145.61,145.6,49.1241626]
[1724159040872,353.16836029,145.61,145.6,6.9241626]
[1724159042969,256.49836029,145.61,145.6,49.1241626]
[1724159043169,256.49836029,145.61,145.6,6.9241626]
[1724159043376,253.49836029,145.61,145.6,45.6325]
[1724159043575,253.49836029,145.61,145.6,49.13119586]
[1724159044167,228.93436029,145.61,145.6,45.6325]
[1724159044661,228.93436029,145.61,145.6,49.07597676]
[1724159045273,228.93436029,145.61,145.6,17.42597676]
[1724159045877,228.93436029,145.61,145.6,6.87597676]
[1724159046675,228.93436029,145.61,145.6,3.4325]
[1724159046974,228.93436029,145.61,145.59,0.04896063]
[1724159047371,228.93436029,145.61,145.59,3.48156063]
[1724159049976,228.93436029,145.61,145.6,3.4325]
[1724159050975,228.93436029,145.61,145.59,0.04896063]
[1724159051884,228.93436029,145.61,145.59,3.48166063]
[1724159052579,228.93436029,145.61,145.59,0.04896063]
[1724159054675,3.4325,145.6,145.57,3.34904887]
[1724159055080,1.2771,145.59,145.57,3.34904887]
[1724159055279,1.2771,145.59,145.51,26.35]
[1724159055479,1.2771,145.59,145.52,1.07543934]
[1724159055682,3.4331,145.58,145.53,3.4339]
[1724159055984,0.04619721,145.57,145.54,0.0447005]
[1724159057480,3.47959721,145.57,145.54,0.0447005]
[1724159059477,0.04619721,145.57,145.54,3.45725063]
[1724159059691,0.04619721,145.57,145.54,0.0447005]
[1724159060091,0.04619721,145.57,145.54,3.4785005]
[1724159060291,0.04619721,145.57,145.54,6.90443587]
[1724159060688,3.47949721,145.57,145.54,6.90443587]
[1724159060986,0.04619721,145.57,145.54,0.0447005]
[1724159061187,0.04619721,145.57,145.49,26.35]
[1724159061496,0.04619721,145.57,145.51,3.4345]
[1724159061788,0.04619721,145.57,145.49,26.35]
[1724159062185,0.04619721,145.57,145.52,0.04911164]
[1724159062389,3.4338,145.55,145.52,3.48341164]
[1724159065985,3.4335,145.56,145.53,3.4341]
[1724159067000,3.4335,145.56,145.52,3.48341164]
[1724159067192,3.4337,145.55,145.52,0.04911164]
[1724159067397,1.3773,145.54,145.52,3.48341164]
[1724159068100,1.3773,145.54,145.52,0.04911164]
[1724159069396,1.3773,145.54,145.52,3.48351164]
[1724159069788,1.3773,145.54,145.52,0.04911164]
[1724159070596,4.8112,145.54,145.52,0.04911164]
[1724159070799,1.3773,145.54,145.52,0.04911164]
[1724159071401,1.3773,145.54,145.52,3.48351164]
[1724159071596,1.3773,145.54,145.52,0.04911164]
[1724159072004,11.9273,145.54,145.52,0.04911164]
[1724159072396,15.3613,145.54,145.52,0.04911164]
[1724159077504,3.4341,145.53,145.52,0.04911164]
[1724159079399,3.4344,145.52,145.5,3.4349]
[1724159079806,3.4344,145.52,145.48,10.55]
[1724159080110,10.55,145.52,145.49,3.4349]
[1724159080503,10.60049138,145.52,145.49,3.48506888]
[1724159080901,3.4346,145.51,145.49,3.48506888]
[1724159083109,3.48499138,145.52,145.5,3.4349]
[1724159091215,10.60049138,145.52,145.5,3.4349]
[1724159092218,14.03499138,145.52,145.5,3.4349]
[1724159093317,14.03499138,145.52,145.49,0.05016888]
[1724159093318,3.4346,145.51,145.49,3.48516888]
[1724159093520,13.9846,145.51,145.49,3.48516888]
[1724159096615,3.4346,145.51,145.49,3.48516888]
[1724159099825,3.4349,145.5,145.49,0.05016888]
[1724159100225,10.60049138,145.52,145.49,0.05016888]
[1724159100919,3.4347,145.51,145.49,0.05016888]
[1724159101425,10.55,145.51,145.49,0.05016888]
[1724159101725,3.4349,145.5,145.49,0.05016888]
[1724159102227,3.4347,145.51,145.49,0.05016888]
[1724159103323,14.03499138,145.52,145.49,0.05016888]
[1724159104129,14.03499138,145.52,145.49,3.48526888]
[1724159105324,0.05049138,145.52,145.49,0.05016888]
[1724159106921,0.05049138,145.52,145.5,3.4347]
[1724159107124,0.05049138,145.52,145.49,0.05016888]
[1724159107430,0.05049138,145.52,145.49,3.48506888]
[1724159108120,3.48489138,145.52,145.49,3.48506888]
[1724159108321,14.03489138,145.52,145.49,0.05016888]
[1724159108530,10.55,145.5,145.49,0.05016888]
[1724159108733,10.55,145.5,145.41,27.46]
[1724159108926,10.55,145.48,145.43,1.07632055]
[1724159109232,10.55,145.48,145.45,3.4359]
[1724159109819,10.55,145.48,145.44,3.4362]
[1724159109820,13.9855,145.48,145.44,3.4362]
[1724159110021,14.03222528,145.48,145.45,0.05212527]
[1724159113032,0.04672528,145.48,145.46,3.4358]
[1724159113234,0.04672528,145.48,145.45,0.05212527]
[1724159113534,0.04672528,145.48,145.45,3.48792527]
[1724159113732,0.04672528,145.48,145.45,0.05212527]
[1724159113931,0.04672528,145.48,145.46,3.4357]
[1724159114133,0.04672528,145.48,145.45,0.05212527]
[1724159116038,0.04672528,145.48,145.46,3.4358]
[1724159116330,0.04672528,145.48,145.45,0.05212527]
[1724159116532,0.04672528,145.48,145.47,3.4356]
[1724159123734,0.04672528,145.48,145.46,3.4356]
[1724159123925,10.59672528,145.48,145.46,3.4356]
[1724159125334,0.04672528,145.48,145.46,3.4356]
[1724159127243,0.04672528,145.48,145.47,3.4356]
[1724159130239,10.59672528,145.48,145.45,0.05212527]
[1724159131344,10.59672528,145.48,145.46,3.4357]
[1724159131737,14.03212528,145.48,145.45,3.48802527]
[1724159133947,14.03212528,145.48,145.46,3.4357]
[1724159134241,0.04672528,145.48,145.46,3.4357]
[1724159134434,0.04672528,145.48,145.47,3.4356]
[1724159135537,0.04672528,145.48,145.46,3.4357]
[1724159136340,0.04672528,145.48,145.45,0.05212527]
[1724159137432,0.04672528,145.48,145.47,3.4356]
[1724159137645,0.04672528,145.48,145.45,0.05212527]
[1724159138242,10.59672528,145.48,145.45,0.05212527]
[1724159138443,10.55,145.46,145.4,40.93924089]
[1724159138644,3.4366,145.43,145.4,3.4371]
[1724159138941,10.55,145.42,145.4,3.4371]
[1724159139148,10.55,145.42,145.4,6.79039292]
[1724159139648,10.60106512,145.42,145.4,3.48127573]
[1724159139943,10.60106512,145.42,145.41,3.51985858]
[1724159140546,10.60106512,145.42,145.4,0.04417573]
[1724159140944,10.60106512,145.42,145.41,3.46987902]
[1724159142134,0.05106512,145.42,145.41,3.46987902]
[1724159142743,0.05106512,145.42,145.4,3.48137573]
[1724159143735,3.48786512,145.42,145.4,0.04417573]
[1724159144750,3.48786512,145.42,145.4,3.48137573]
[1724159145249,3.48786512,145.42,145.4,0.04417573]
[1724159146052,3.437,145.41,145.4,0.04417573]
[1724159146652,3.48786512,145.42,145.4,0.04417573]
[1724159146855,0.05106512,145.42,145.4,0.04417573]
[1724159147253,13.987,145.41,145.4,0.04417573]
[1724159147753,15.3597,145.41,145.4,0.04417573]
[1724159148550,3.4377,145.38,145.33,11.9113]
[1724159149456,0.04902937,145.37,145.36,3.4382]
[1724159149761,0.04902937,145.37,145.36,6.91484549]
[1724159150055,0.04902937,145.37,145.36,3.4382]
[1724159150548,0.04902937,145.37,145.36,6.80800115]
[1724159151256,0.04902937,145.37,145.36,3.4382]
[1724159151761,0.04902937,145.37,145.35,6.79101881]
[1724159152262,0.04902937,145.37,145.35,3.35261881]
[1724159152557,0.04902937,145.37,145.35,6.79101881]
[1724159152852,0.04902937,145.37,145.35,3.35261881]
[1724159153047,0.04902937,145.37,145.36,3.4382]
[1724159153249,0.04902937,145.37,145.34,0.04541264]
[1724159153558,0.04902937,145.37,145.34,3.41349556]
[1724159153752,0.04902937,145.37,145.35,3.4383]
[1724159154550,10.59902937,145.37,145.34,0.04541264]
[1724159155059,14.03712937,145.37,145.34,3.45245534]
[1724159156861,14.03712937,145.37,145.34,6.89105534]
[1724159159267,0.17751491,145.37,145.35,31.1373921]
[1724159159567,0.17751491,145.37,145.34,3.45245534]
[1724159159760,3.4382,145.36,145.35,31.13877368]
[1724159160159,3.4382,145.36,145.35,17.5604892]
[1724159160363,3.4382,145.36,145.35,31.13877368]
[1724159161070,13.9882,145.36,145.35,31.13877368]
[1724159161367,13.9882,145.36,145.35,31.06737744]
[1724159161572,13.9882,145.36,145.35,17.51429149]
[1724159162663,3.4382,145.36,145.35,17.51429149]
[1724159162863,3.48539467,145.37,145.35,17.51429149]
[1724159163069,0.04739467,145.37,145.36,17.51429149]
[1724159163268,0.04739467,145.37,145.36,31.06737744]
[1724159163469,0.04739467,145.37,145.36,17.51429149]
[1724159163859,0.04739467,145.37,145.36,31.06737744]
[1724159164869,0.04739467,145.37,145.35,3.4383]
[1724159165068,0.04739467,145.37,145.36,31.06158429]
[1724159166274,0.04739467,145.37,145.36,17.5110171]
[1724159166573,0.04739467,145.37,145.36,31.06158429]
[1724159166767,0.04739467,145.37,145.36,17.5110171]
[1724159166966,0.04739467,145.37,145.36,31.06158429]
[1724159167163,0.04739467,145.37,145.36,17.5110171]
[1724159167469,10.59739467,145.37,145.36,17.5110171]
[1724159167669,14.03529467,145.37,145.36,6.70983344]
[1724159167970,14.03529467,145.37,145.36,17.5110171]
[1724159168173,14.03529467,145.37,145.36,6.70983344]
[1724159169269,14.03529467,145.37,145.34,0.04541264]
[1724159169270,3.4384,145.35,145.34,0.04541264]
[1724159169458,13.9884,145.35,145.34,0.04541264]
[1724159173578,10.55,145.33,145.31,3.43593163]
[1724159174676,10.55,145.33,145.31,3.48581976]
[1724159174677,10.59442347,145.33,145.31,3.48581976]
[1724159175984,14.03332347,145.33,145.31,3.48581976]
[1724159176180,0.04442347,145.33,145.31,6.92511976]
[1724159176387,10.55,145.32,145.31,0.04988813]
[1724159176694,52.75,145.32,145.26,3.4404]
[1724159176896,42.2,145.32,145.23,13.55056719]
[1724159177092,10.55,145.25,145.22,13.55056719]
[1724159177290,10.55,145.25,145.23,3.4411]
[1724159177688,10.59538516,145.25,145.23,3.48702501]
[1724159178291,13.991,145.24,145.23,0.04592501]
[1724159179093,0.04538516,145.25,145.23,0.04592501]
[1724159179298,10.55,145.24,145.23,0.04592501]
[1724159179697,0.04538516,145.25,145.23,0.04592501]
[1724159179900,10.55,145.23,145.16,34.86544207]
[1724159180100,10.55,145.23,145.16,38.3192171]
[1724159180301,10.55,145.23,145.17,10.78136558]
[1724159180592,3.4412,145.24,145.16,24.78514061]
[1724159180798,0.05096061,145.21,145.2,3.442]
[1724159181590,0.05096061,145.21,145.2,6.85209119]
[1724159181988,0.05096061,145.21,145.2,13.54254126]
[1724159182200,10.55,145.24,145.21,3.4417]
[1724159182802,13.9912,145.24,145.21,3.3554004]
[1724159182997,10.55,145.23,145.18,10.78078537]
[1724159183199,0.05039908,145.22,145.19,6.73708512]
[1724159183395,0.05039908,145.22,145.19,10.17908512]
[1724159183701,10.55,145.2,145.19,0.04655748]
[1724159184096,13.992,145.2,145.19,0.04655748]
[1724159184298,10.55,145.2,145.19,0.04655748]
[1724159185700,3.442,145.2,145.19,0.04655748]
[1724159185904,13.992,145.2,145.19,0.04655748]
[1724159186092,3.4419,145.21,145.19,0.04655748]
[1724159186294,10.55,145.2,145.17,3.4425]
[1724159186502,10.55,145.18,145.14,15.2901852]
[1724159186705,10.55,145.18,145.15,6.69229717]
[1724159186912,10.55,145.18,145.15,10.20565357]
[1724159187198,10.55,145.16,145.14,4.50939983]
[1724159187399,10.55,145.16,145.15,6.69252703]
[1724159187604,0.04604695,145.16,145.14,4.55858833]
[1724159187902,10.59604695,145.16,145.14,4.55858833]
[1724159188696,0.04604695,145.16,145.14,4.55858833]
[1724159188897,10.55,145.15,145.14,4.55858833]
[1724159191005,10.55,145.15,145.14,8.00198833]
[1724159191211,10.59604695,145.16,145.14,8.00198833]
[1724159192407,0.04604695,145.16,145.15,3.4431]
[1724159193214,1.3511,145.22,145.18,3.4423]
[1724159193505,10.55,145.21,145.18,3.4423]
[1724159193708,10.55,145.2,145.18,3.4423]
[1724159193908,10.55,145.2,145.14,15.29210828]
[1724159194105,10.55,145.2,145.15,6.69216957]
[1724159194301,0.04697142,145.19,145.16,0.05036728]
[1724159195004,0.04697142,145.19,145.18,3.4424]
[1724159195198,10.59697142,145.19,145.16,0.05036728]
[1724159195510,10.59697142,145.19,145.16,3.49316728]
[1724159195706,10.59697142,145.19,145.16,0.05036728]
[1724159195900,10.59697142,145.19,145.16,3.49316728]
[1724159196408,10.59697142,145.19,145.16,0.05036728]
[1724159196910,10.59697142,145.19,145.16,3.49316728]
[1724159197310,10.59697142,145.19,145.16,0.05036728]
[1724159197511,14.03927142,145.19,145.16,3.49326728]
[1724159198113,10.59697142,145.19,145.16,0.05036728]
[1724159198305,14.03937142,145.19,145.16,0.05036728]
[1724159199006,14.03937142,145.19,145.16,3.49306728]
[1724159199714,0.04697142,145.19,145.16,0.05036728]
[1724159201211,0.04697142,145.19,145.18,3.4424]
[1724159201407,0.00052273,145.19,145.18,13.9924]
[1724159204215,0.00052273,145.19,145.18,3.4424]
[1724159205619,0.00052273,145.19,145.18,13.9924]
[1724159205813,0.00052273,145.19,145.18,20.68294377]
[1724159206015,10.55,145.25,145.23,3.441]
[1724159207113,10.55,145.25,145.23,3.49080749]
[1724159207114,10.60288547,145.25,145.23,3.49080749]
[1724159207818,14.04388547,145.25,145.23,0.04980749]
[1724159208221,10.60288547,145.25,145.23,0.04980749]
[1724159208419,3.441,145.24,145.23,0.04980749]
[1724159208917,3.49368547,145.25,145.23,0.04980749]
[1724159209118,14.04368547,145.25,145.23,0.04980749]
[1724159209821,10.60288547,145.25,145.23,3.49100749]
[1724159210216,10.60288547,145.25,145.23,0.04980749]
[1724159210616,14.04368547,145.25,145.23,0.04980749]
[1724159211913,10.60288547,145.25,145.23,3.49100749]
[1724159212508,0.05288547,145.25,145.24,3.441]
[1724159213220,0.05288547,145.25,145.23,3.49090749]
[1724159214217,10.60288547,145.25,145.23,0.04980749]
[1724159214417,10.55,145.24,145.23,0.04980749]
[1724159215119,13.991,145.24,145.23,0.04980749]
[1724159217021,10.55,145.24,145.23,0.04980749]
[1724159217917,13.991,145.24,145.14,4.50939983]
[1724159218223,13.991,145.24,145.17,10.55]
[1724159218526,13.991,145.24,145.21,3.4415]
[1724159219028,14.043129,145.24,145.21,3.48514352]
[1724159219322,13.9912,145.23,145.21,0.04364352]
[1724159219625,10.55,145.23,145.21,0.04364352]
[1724159221231,13.9914,145.23,145.21,0.04364352]
[1724159221416,13.9914,145.23,145.2,3.4419]
[1724159221417,10.55,145.23,145.15,10.78186155]
[1724159221724,10.55,145.21,145.16,6.69199368]
[1724159221926,0.052129,145.24,145.16,10.55]
[1724159221927,3.4415,145.22,145.16,10.55]
[1724159222121,3.4415,145.22,145.17,6.69178763]
[1724159222317,3.4415,145.22,145.18,6.6913865]
[1724159222519,0.04386714,145.21,145.16,10.55]
[1724159222713,0.04386714,145.21,145.18,0.04414735]
[1724159223126,10.59386714,145.21,145.18,0.04414735]
[1724159223526,0.04386714,145.21,145.18,0.04414735]
[1724159224024,0.04386714,145.21,145.2,3.442]
[1724159224217,10.55,145.25,145.2,3.442]
[1724159224418,10.55,145.24,145.2,3.442]
[1724159224726,13.991,145.24,145.2,3.442]
[1724159225432,13.9915,145.22,145.21,0.04699087]
[1724159225625,10.55,145.22,145.2,0.04940036]
[1724159226229,10.55,145.22,145.2,3.49140036]
[1724159226628,3.48583387,145.23,145.2,3.49140036]
[1724159227929,0.04453387,145.23,145.2,3.49140036]